[Event "Titled Tuesday Blitz September 13 Late 2022"]
[White "Sarana, Alexey"]
[Black "Yurovskykh, Oleksandr"]
[WhiteFideId "24133795"]
[BlackFideId "14134020"]
[WhiteElo "2689"]
[BlackElo "2303"]
[Result "1-0"]
[Round "04"]
[TimeControl "180+1"]
[Date "2022.09.13"]
[WhiteClock "0:02:00"]
[BlackClock "0:00:38"]

1. c4 {[%clk 0:03:00]}  e6 {[%clk 0:02:54]} 2. Nc3 {[%clk 0:03:00]}  d5 {[%clk 0:02:55]} 3. d4 {[%clk 0:03:00]}  Nf6 {[%clk 0:02:55]} 4. Nf3 {[%clk 0:02:59]}  c5 {[%clk 0:02:55]} 5. cxd5 {[%clk 0:02:59]}  Nxd5 {[%clk 0:02:56]} 6. g3 {[%clk 0:02:56]}  Nxc3 {[%clk 0:02:52]} 7. bxc3 {[%clk 0:02:57]}  cxd4 {[%clk 0:02:52]} 8. cxd4 {[%clk 0:02:58]}  Bb4+ {[%clk 0:02:53]} 9. Bd2 {[%clk 0:02:58]}  Bxd2+ {[%clk 0:02:53]} 10. Qxd2 {[%clk 0:02:59]}  b6 {[%clk 0:02:52]} 11. Bg2 {[%clk 0:03:00]}  Bb7 {[%clk 0:02:52]} 12. O-O {[%clk 0:03:00]}  O-O {[%clk 0:02:50]} 13. Rfd1 {[%clk 0:03:00]}  Nd7 {[%clk 0:02:16]} 14. a4 {[%clk 0:03:00]}  h6 {[%clk 0:01:59]} 15. a5 {[%clk 0:03:00]}  bxa5 {[%clk 0:01:57]} 16. Rxa5 {[%clk 0:03:01]}  a6 {[%clk 0:01:55]} 17. Rda1 {[%clk 0:03:01]}  Qc7 {[%clk 0:01:52]} 18. e3 {[%clk 0:02:53]}  Rfc8 {[%clk 0:01:52]} 19. Qd3 {[%clk 0:02:50]}  Qc2 {[%clk 0:01:34]} 20. Qxc2 {[%clk 0:02:46]}  Rxc2 {[%clk 0:01:35]} 21. Ne1 {[%clk 0:02:43]}  Rb2 {[%clk 0:01:29]} 22. Bxb7 {[%clk 0:02:42]}  Rxb7 {[%clk 0:01:29]} 23. Rxa6 {[%clk 0:02:42]}  Rxa6 {[%clk 0:01:28]} 24. Rxa6 {[%clk 0:02:43]}  Rb1 {[%clk 0:01:24]} 25. Kf1 {[%clk 0:02:43]}  Nf6 {[%clk 0:01:25]} 26. Ra2 {[%clk 0:02:35]}  Nd5 {[%clk 0:01:17]} 27. Rc2 {[%clk 0:02:33]}  g5 {[%clk 0:01:16]} 28. h3 {[%clk 0:02:30]}  Kg7 {[%clk 0:01:16]} 29. Ke2 {[%clk 0:02:29]}  Nf6 {[%clk 0:01:11]} 30. Nd3 {[%clk 0:02:28]}  Rh1 {[%clk 0:01:11]} 31. Kf3 {[%clk 0:02:24]}  Rxh3 {[%clk 0:01:02]} 32. Kg2 {[%clk 0:02:24]}  Rh5 {[%clk 0:01:02]} 33. Ne5 {[%clk 0:02:09]}  g4 {[%clk 0:00:45]} 34. Rc7 {[%clk 0:02:09]}  Rf5 {[%clk 0:00:42]} 35. Rxf7+ {[%clk 0:02:06]}  Kg8 {[%clk 0:00:42]} 36. Re7 {[%clk 0:02:04]}  h5 {[%clk 0:00:41]} 37. Rxe6 {[%clk 0:02:02]}  Ne4 {[%clk 0:00:40]} 38. Nxg4 {[%clk 0:01:59]}  hxg4 {[%clk 0:00:34]} 39. Rxe4 {[%clk 0:01:59]}  Rg5 {[%clk 0:00:35]} 40. Rf4 {[%clk 0:01:59]}  Kg7 {[%clk 0:00:35]} 41. e4 {[%clk 0:02:00]}  Kg6 {[%clk 0:00:36]} 42. e5 {[%clk 0:02:00]}  Kh5 {[%clk 0:00:36]} 43. Kf1 {[%clk 0:01:59]}  Rg8 {[%clk 0:00:35]} 44. Ke2 {[%clk 0:02:00]}  Kg5 {[%clk 0:00:35]} 45. Ke3 {[%clk 0:02:00]}  Ra8 {[%clk 0:00:36]} 46. Ke4 {[%clk 0:02:00]}  Ra1 {[%clk 0:00:37]} 47. e6 {[%clk 0:02:00]}  Re1+ {[%clk 0:00:38]} 1-0


[Site "https://www.chess.com"]

[Event "Titled Tuesday Blitz September 13 Late 2022"]
[White "Shirov, Alexei"]
[Black "Besedes, Danilo"]
[WhiteFideId "2209390"]
[BlackFideId "946796"]
[WhiteElo "2678"]
[BlackElo "2352"]
[Result "0-1"]
[Round "04"]
[TimeControl "180+1"]
[Date "2022.09.13"]
[WhiteClock "0:00:40"]
[BlackClock "0:00:59"]

1. e4 {[%clk 0:03:00]}  c6 {[%clk 0:02:58]} 2. d4 {[%clk 0:02:59]}  d5 {[%clk 0:02:59]} 3. e5 {[%clk 0:02:58]}  Bf5 {[%clk 0:02:59]} 4. h4 {[%clk 0:02:57]}  h5 {[%clk 0:02:58]} 5. Bd3 {[%clk 0:02:55]}  Bxd3 {[%clk 0:02:58]} 6. Qxd3 {[%clk 0:02:54]}  e6 {[%clk 0:02:58]} 7. Nf3 {[%clk 0:02:45]}  Ne7 {[%clk 0:02:55]} 8. Bg5 {[%clk 0:02:35]}  Qa5+ {[%clk 0:02:52]} 9. Nbd2 {[%clk 0:02:35]}  Nf5 {[%clk 0:02:50]} 10. O-O {[%clk 0:02:32]}  Qa6 {[%clk 0:02:46]} 11. c4 {[%clk 0:02:28]}  Bb4 {[%clk 0:02:45]} 12. Rfc1 {[%clk 0:01:58]}  Nd7 {[%clk 0:02:43]} 13. b3 {[%clk 0:01:47]}  O-O {[%clk 0:02:32]} 14. Nf1 {[%clk 0:01:46]}  Rac8 {[%clk 0:02:20]} 15. Ne3 {[%clk 0:01:41]}  Nxe3 {[%clk 0:02:16]} 16. Qxe3 {[%clk 0:01:40]}  Ba3 {[%clk 0:02:12]} 17. Rc2 {[%clk 0:01:29]}  c5 {[%clk 0:02:06]} 18. Bf6 {[%clk 0:01:29]}  Nxf6 {[%clk 0:01:21]} 19. exf6 {[%clk 0:01:28]}  gxf6 {[%clk 0:01:22]} 20. Qh6 {[%clk 0:01:29]}  cxd4 {[%clk 0:01:22]} 21. Qxf6 {[%clk 0:01:27]}  e5 {[%clk 0:01:19]} 22. Qxe5 {[%clk 0:01:21]}  Qg6 {[%clk 0:01:20]} 23. Nxd4 {[%clk 0:01:16]}  dxc4 {[%clk 0:01:20]} 24. Rc3 {[%clk 0:01:13]}  Rfe8 {[%clk 0:01:11]} 25. Qb5 {[%clk 0:01:08]}  Bb2 {[%clk 0:01:06]} 26. Rac1 {[%clk 0:00:45]}  Bxc1 {[%clk 0:01:05]} 27. Rxc1 {[%clk 0:00:45]}  cxb3 {[%clk 0:01:02]} 28. Rxc8 {[%clk 0:00:42]}  Rxc8 {[%clk 0:01:03]} 29. Qxb3 {[%clk 0:00:40]}  Rc1+ {[%clk 0:00:59]} 30. Kh2 {[%clk 0:00:40]}  Qd6+ {[%clk 0:00:59]} 0-1


[Site "https://www.chess.com"]

[Event "Titled Tuesday Blitz September 13 Late 2022"]
[White "Sjugirov, Sanan"]
[Black "Ghasi, Ameet K"]
[WhiteFideId "4189302"]
[BlackFideId "409200"]
[WhiteElo "2609"]
[BlackElo "2587"]
[Result "1-0"]
[Round "04"]
[TimeControl "180+1"]
[Date "2022.09.13"]
[WhiteClock "0:01:24"]
[BlackClock "0:00:35"]

1. e4 {[%clk 0:03:00]}  c5 {[%clk 0:02:58]} 2. Nf3 {[%clk 0:03:00]}  e6 {[%clk 0:02:58]} 3. c3 {[%clk 0:02:58]}  Nf6 {[%clk 0:02:53]} 4. e5 {[%clk 0:02:58]}  Nd5 {[%clk 0:02:53]} 5. d4 {[%clk 0:02:59]}  cxd4 {[%clk 0:02:52]} 6. cxd4 {[%clk 0:03:00]}  Nc6 {[%clk 0:02:52]} 7. Nc3 {[%clk 0:02:58]}  d6 {[%clk 0:02:52]} 8. exd6 {[%clk 0:02:46]}  Bxd6 {[%clk 0:02:48]} 9. Bd3 {[%clk 0:02:46]}  O-O {[%clk 0:02:41]} 10. O-O {[%clk 0:02:45]}  Nce7 {[%clk 0:02:34]} 11. Re1 {[%clk 0:02:42]}  b6 {[%clk 0:02:33]} 12. Ne4 {[%clk 0:02:33]}  f6 {[%clk 0:02:18]} 13. a3 {[%clk 0:02:31]}  Bc7 {[%clk 0:02:08]} 14. Bd2 {[%clk 0:02:24]}  Bb7 {[%clk 0:02:07]} 15. Qe2 {[%clk 0:02:21]}  Qd7 {[%clk 0:02:06]} 16. Ng3 {[%clk 0:02:20]}  Bc8 {[%clk 0:01:39]} 17. Rac1 {[%clk 0:02:19]}  a6 {[%clk 0:01:37]} 18. Qe4 {[%clk 0:02:15]}  g6 {[%clk 0:01:33]} 19. Qe2 {[%clk 0:02:12]}  Bd6 {[%clk 0:01:29]} 20. Ne4 {[%clk 0:02:11]}  Nf5 {[%clk 0:01:24]} 21. Nxd6 {[%clk 0:02:04]}  Qxd6 {[%clk 0:01:25]} 22. g4 {[%clk 0:01:25]}  Nfe7 {[%clk 0:01:25]} 23. Bh6 {[%clk 0:01:25]}  Re8 {[%clk 0:01:17]} 24. Nd2 {[%clk 0:01:25]}  f5 {[%clk 0:00:35]} 25. Nc4 {[%clk 0:01:25]}  Qd8 {[%clk 0:00:35]} 26. Qe5 {[%clk 0:01:24]} 1-0


[Site "https://www.chess.com"]

[Event "Titled Tuesday Blitz September 13 Late 2022"]
[White "Timmermans, Mark"]
[Black "Souleidis, Georgios"]
[WhiteFideId "1026399"]
[BlackFideId "4206827"]
[WhiteElo "2460"]
[BlackElo "2401"]
[Result "1-0"]
[Round "04"]
[TimeControl "180+1"]
[Date "2022.09.13"]
[WhiteClock "0:00:26"]
[BlackClock "0:00:09"]

1. Nf3 {[%clk 0:03:00]}  Nf6 {[%clk 0:02:58]} 2. c4 {[%clk 0:02:59]}  g6 {[%clk 0:02:59]} 3. Nc3 {[%clk 0:02:56]}  Bg7 {[%clk 0:02:59]} 4. b3 {[%clk 0:02:50]}  O-O {[%clk 0:02:57]} 5. Bb2 {[%clk 0:02:51]}  d6 {[%clk 0:02:47]} 6. e3 {[%clk 0:02:47]}  e5 {[%clk 0:02:47]} 7. Be2 {[%clk 0:02:41]}  Re8 {[%clk 0:02:40]} 8. O-O {[%clk 0:02:39]}  e4 {[%clk 0:02:32]} 9. Nd4 {[%clk 0:02:39]}  Nbd7 {[%clk 0:02:21]} 10. f4 {[%clk 0:02:36]}  a5 {[%clk 0:02:12]} 11. Qc2 {[%clk 0:02:32]}  Nc5 {[%clk 0:02:12]} 12. a3 {[%clk 0:02:31]}  Bg4 {[%clk 0:02:04]} 13. b4 {[%clk 0:02:04]}  Bxe2 {[%clk 0:02:03]} 14. Ncxe2 {[%clk 0:02:04]}  Nd3 {[%clk 0:01:57]} 15. Bc3 {[%clk 0:02:03]}  axb4 {[%clk 0:01:11]} 16. axb4 {[%clk 0:02:04]}  Qd7 {[%clk 0:00:55]} 17. b5 {[%clk 0:01:53]}  c5 {[%clk 0:00:49]} 18. bxc6 {[%clk 0:01:49]}  bxc6 {[%clk 0:00:49]} 19. Ng3 {[%clk 0:01:49]}  d5 {[%clk 0:00:44]} 20. cxd5 {[%clk 0:01:39]}  cxd5 {[%clk 0:00:45]} 21. Rxa8 {[%clk 0:01:33]}  Rxa8 {[%clk 0:00:45]} 22. Rb1 {[%clk 0:01:34]}  Rc8 {[%clk 0:00:42]} 23. Qb3 {[%clk 0:01:28]}  h5 {[%clk 0:00:37]} 24. h3 {[%clk 0:01:26]}  Ne8 {[%clk 0:00:27]} 25. Qb5 {[%clk 0:01:23]}  Qd8 {[%clk 0:00:21]} 26. Nc6 {[%clk 0:01:13]}  Qd7 {[%clk 0:00:17]} 27. Nd4 {[%clk 0:01:07]}  Qd8 {[%clk 0:00:17]} 28. Nge2 {[%clk 0:01:02]}  Nd6 {[%clk 0:00:17]} 29. Qxd5 {[%clk 0:01:01]}  Qe7 {[%clk 0:00:15]} 30. Nc6 {[%clk 0:00:56]}  Qd7 {[%clk 0:00:13]} 31. Ne5 {[%clk 0:00:54]}  Qe7 {[%clk 0:00:12]} 32. Nxd3 {[%clk 0:00:48]}  exd3 {[%clk 0:00:11]} 33. Qxd3 {[%clk 0:00:49]}  Ne4 {[%clk 0:00:09]} 34. Bxg7 {[%clk 0:00:48]}  Kxg7 {[%clk 0:00:10]} 35. Qd4+ {[%clk 0:00:42]}  Kg8 {[%clk 0:00:10]} 36. d3 {[%clk 0:00:39]}  Nd6 {[%clk 0:00:09]} 37. e4 {[%clk 0:00:38]}  Rd8 {[%clk 0:00:09]} 38. Qb4 {[%clk 0:00:35]}  Qa7+ {[%clk 0:00:09]} 39. Qb6 {[%clk 0:00:34]}  Qa8 {[%clk 0:00:09]} 40. Nd4 {[%clk 0:00:31]}  Rd7 {[%clk 0:00:09]} 41. Qb8+ {[%clk 0:00:29]}  Qxb8 {[%clk 0:00:09]} 42. Rxb8+ {[%clk 0:00:30]}  Kg7 {[%clk 0:00:09]} 43. Nc6 {[%clk 0:00:30]}  Rc7 {[%clk 0:00:09]} 44. Ne5 {[%clk 0:00:28]}  f6 {[%clk 0:00:09]} 45. Nf3 {[%clk 0:00:26]}  Nf7 {[%clk 0:00:09]} 46. d4 {[%clk 0:00:26]}  g5 {[%clk 0:00:09]} 47. fxg5 {[%clk 0:00:26]}  fxg5 {[%clk 0:00:10]} 48. Rb5 {[%clk 0:00:25]}  g4 {[%clk 0:00:09]} 49. hxg4 {[%clk 0:00:26]}  hxg4 {[%clk 0:00:10]} 50. Ng5 {[%clk 0:00:26]}  Kf6 {[%clk 0:00:08]} 51. Rf5+ {[%clk 0:00:25]}  Kg6 {[%clk 0:00:09]} 52. Nxf7 {[%clk 0:00:26]} 1-0


[Site "https://www.chess.com"]

[Event "Titled Tuesday Blitz September 13 Late 2022"]
[White "Turski, Bartlomiej"]
[Black "Ter-Sahakyan, Samvel"]
[WhiteFideId "21810567"]
[BlackFideId "13302531"]
[WhiteElo "2001"]
[BlackElo "2604"]
[Result "0-1"]
[Round "04"]
[TimeControl "180+1"]
[Date "2022.09.13"]
[WhiteClock "0:00:38"]
[BlackClock "0:01:07"]

1. e4 {[%clk 0:03:00]}  c6 {[%clk 0:03:00]} 2. d4 {[%clk 0:03:00]}  d5 {[%clk 0:03:00]} 3. Nc3 {[%clk 0:03:01]}  dxe4 {[%clk 0:02:59]} 4. Nxe4 {[%clk 0:03:02]}  Nf6 {[%clk 0:02:59]} 5. Nxf6+ {[%clk 0:03:02]}  exf6 {[%clk 0:03:00]} 6. c3 {[%clk 0:03:03]}  Bd6 {[%clk 0:02:59]} 7. Bd3 {[%clk 0:03:03]}  Na6 {[%clk 0:02:59]} 8. Qc2 {[%clk 0:02:35]}  Nc7 {[%clk 0:02:57]} 9. c4 {[%clk 0:02:26]}  Bb4+ {[%clk 0:02:53]} 10. Bd2 {[%clk 0:02:17]}  Bxd2+ {[%clk 0:02:53]} 11. Qxd2 {[%clk 0:02:18]}  Qxd4 {[%clk 0:02:51]} 12. Nf3 {[%clk 0:02:14]}  Qc5 {[%clk 0:02:39]} 13. O-O {[%clk 0:02:11]}  O-O {[%clk 0:02:38]} 14. b4 {[%clk 0:01:56]}  Qh5 {[%clk 0:02:35]} 15. Qc2 {[%clk 0:01:48]}  Bg4 {[%clk 0:02:31]} 16. Nd4 {[%clk 0:01:41]}  Rad8 {[%clk 0:02:27]} 17. Nb3 {[%clk 0:01:24]}  Ne6 {[%clk 0:02:03]} 18. h3 {[%clk 0:01:19]}  Bxh3 {[%clk 0:01:51]} 19. gxh3 {[%clk 0:01:18]}  Nf4 {[%clk 0:01:48]} 20. Bf5 {[%clk 0:01:15]}  Qg5+ {[%clk 0:01:42]} 21. Bg4 {[%clk 0:01:11]}  Nxh3+ {[%clk 0:01:39]} 22. Kh2 {[%clk 0:01:04]}  Qxg4 {[%clk 0:01:39]} 23. f3 {[%clk 0:00:57]}  Qh5 {[%clk 0:01:37]} 24. Kg3 {[%clk 0:00:52]}  Ng5 {[%clk 0:01:22]} 25. Qf5 {[%clk 0:00:50]}  g6 {[%clk 0:01:09]} 26. Qg4 {[%clk 0:00:46]}  Qxg4+ {[%clk 0:01:09]} 27. Kxg4 {[%clk 0:00:47]}  Ne6 {[%clk 0:01:07]} 28. Na5 {[%clk 0:00:42]}  Rd7 {[%clk 0:01:06]} 29. Rad1 {[%clk 0:00:41]}  Rfd8 {[%clk 0:01:06]} 30. Rxd7 {[%clk 0:00:38]}  Rxd7 {[%clk 0:01:07]} 0-1


[Site "https://www.chess.com"]

[Event "Titled Tuesday Blitz September 13 Late 2022"]
[White "Yoo, Christopher Woojin"]
[Black "Domalchuk-Jonasson, Aleksandr"]
[WhiteFideId "30909694"]
[BlackFideId "14142805"]
[WhiteElo "2105"]
[BlackElo "1991"]
[Result "1-0"]
[Round "04"]
[TimeControl "180+1"]
[Date "2022.09.13"]
[WhiteClock "0:00:08"]
[BlackClock "0:00:02"]

1. Nf3 {[%clk 0:03:00]}  d5 {[%clk 0:02:59]} 2. b3 {[%clk 0:03:00]}  Nf6 {[%clk 0:02:59]} 3. Bb2 {[%clk 0:03:01]}  e6 {[%clk 0:03:00]} 4. c4 {[%clk 0:03:01]}  Be7 {[%clk 0:03:00]} 5. g3 {[%clk 0:03:01]}  O-O {[%clk 0:02:58]} 6. Bg2 {[%clk 0:03:01]}  b6 {[%clk 0:02:57]} 7. O-O {[%clk 0:03:00]}  Bb7 {[%clk 0:02:57]} 8. Ne5 {[%clk 0:03:00]}  Nbd7 {[%clk 0:02:54]} 9. d4 {[%clk 0:03:01]}  c5 {[%clk 0:02:53]} 10. Nxd7 {[%clk 0:02:56]}  Qxd7 {[%clk 0:02:48]} 11. dxc5 {[%clk 0:02:55]}  bxc5 {[%clk 0:02:41]} 12. e3 {[%clk 0:02:55]}  a5 {[%clk 0:02:35]} 13. Nc3 {[%clk 0:02:54]}  Rfd8 {[%clk 0:02:32]} 14. Na4 {[%clk 0:02:40]}  Qc7 {[%clk 0:02:13]} 15. cxd5 {[%clk 0:02:37]}  Bxd5 {[%clk 0:02:07]} 16. Bxd5 {[%clk 0:02:26]}  Rxd5 {[%clk 0:01:55]} 17. Qf3 {[%clk 0:02:25]}  Rad8 {[%clk 0:01:53]} 18. Rfd1 {[%clk 0:02:19]}  h6 {[%clk 0:01:48]} 19. Rac1 {[%clk 0:02:06]}  Rxd1+ {[%clk 0:01:04]} 20. Rxd1 {[%clk 0:01:56]}  Nd5 {[%clk 0:01:05]} 21. Qg4 {[%clk 0:01:49]}  Nf6 {[%clk 0:00:43]} 22. Qe2 {[%clk 0:01:45]}  Nd5 {[%clk 0:00:30]} 23. e4 {[%clk 0:01:43]}  Nb4 {[%clk 0:00:30]} 24. a3 {[%clk 0:01:43]}  Nc6 {[%clk 0:00:28]} 25. Rxd8+ {[%clk 0:01:19]}  Qxd8 {[%clk 0:00:28]} 26. Kg2 {[%clk 0:01:19]}  Nd4 {[%clk 0:00:28]} 27. Qc4 {[%clk 0:01:18]}  Qa8 {[%clk 0:00:19]} 28. f3 {[%clk 0:01:16]}  Qb7 {[%clk 0:00:12]} 29. Nxc5 {[%clk 0:01:13]}  Bxc5 {[%clk 0:00:12]} 30. Qxc5 {[%clk 0:01:14]}  Nxb3 {[%clk 0:00:13]} 31. Qe5 {[%clk 0:01:11]}  f6 {[%clk 0:00:10]} 32. Qxe6+ {[%clk 0:01:11]}  Kh8 {[%clk 0:00:11]} 33. Qc4 {[%clk 0:00:59]}  Nd2 {[%clk 0:00:08]} 34. Qd4 {[%clk 0:00:59]}  Nc4 {[%clk 0:00:06]} 35. Bc3 {[%clk 0:00:38]}  Qb3 {[%clk 0:00:05]} 36. g4 {[%clk 0:00:35]}  Nxa3 {[%clk 0:00:05]} 37. Bxa5 {[%clk 0:00:34]}  Qc2+ {[%clk 0:00:05]} 38. Qf2 {[%clk 0:00:31]}  Qxf2+ {[%clk 0:00:03]} 39. Kxf2 {[%clk 0:00:32]}  Kg8 {[%clk 0:00:04]} 40. Ke2 {[%clk 0:00:30]}  Kf7 {[%clk 0:00:04]} 41. Kd3 {[%clk 0:00:30]}  Nb5 {[%clk 0:00:04]} 42. Kc4 {[%clk 0:00:27]}  Nd6+ {[%clk 0:00:04]} 43. Kd5 {[%clk 0:00:27]}  Nb5 {[%clk 0:00:03]} 44. Bb4 {[%clk 0:00:26]}  Nc7+ {[%clk 0:00:03]} 45. Kc4 {[%clk 0:00:22]}  Ne6 {[%clk 0:00:03]} 46. Bd6 {[%clk 0:00:22]}  Ng5 {[%clk 0:00:03]} 47. Kd5 {[%clk 0:00:05]}  Nxf3 {[%clk 0:00:04]} 48. Bf4 {[%clk 0:00:06]}  Kg6 {[%clk 0:00:03]} 49. Kc4 {[%clk 0:00:03]}  h5 {[%clk 0:00:04]} 50. h3 {[%clk 0:00:03]}  hxg4 {[%clk 0:00:04]} 51. hxg4 {[%clk 0:00:04]}  Nh4 {[%clk 0:00:03]} 52. Kd3 {[%clk 0:00:03]}  Ng2 {[%clk 0:00:04]} 53. Bd2 {[%clk 0:00:03]}  Kf7 {[%clk 0:00:02]} 54. Ke2 {[%clk 0:00:03]}  Nh4 {[%clk 0:00:01]} 55. Kf2 {[%clk 0:00:01]}  Ng6 {[%clk 0:00:02]} 56. Kg3 {[%clk 0:00:01]}  Ne5 {[%clk 0:00:02]} 57. Bc3 {[%clk 0:00:02]}  Nd3 {[%clk 0:00:03]} 58. Kf3 {[%clk 0:00:02]}  Kg6 {[%clk 0:00:03]} 59. Ke3 {[%clk 0:00:02]}  Nc5 {[%clk 0:00:04]} 60. Bd4 {[%clk 0:00:01]}  Ne6 {[%clk 0:00:04]} 61. Bc3 {[%clk 0:00:02]}  Kg5 {[%clk 0:00:05]} 62. Kf3 {[%clk 0:00:02]}  Nc5 {[%clk 0:00:05]} 63. Bd2+ {[%clk 0:00:02]}  Kg6 {[%clk 0:00:05]} 64. Be3 {[%clk 0:00:03]}  Nd3 {[%clk 0:00:05]} 65. Bd4 {[%clk 0:00:03]}  Kh6 {[%clk 0:00:04]} 66. Ke3 {[%clk 0:00:02]}  Nb4 {[%clk 0:00:04]} 67. Kf4 {[%clk 0:00:02]}  Nc6 {[%clk 0:00:04]} 68. Bc3 {[%clk 0:00:02]}  Kg6 {[%clk 0:00:05]} 69. Bb2 {[%clk 0:00:02]}  Ne7 {[%clk 0:00:05]} 70. Ba3 {[%clk 0:00:02]}  Nc8 {[%clk 0:00:05]} 71. Bc5 {[%clk 0:00:02]}  Kf7 {[%clk 0:00:05]} 72. Kf5 {[%clk 0:00:02]}  g6+ {[%clk 0:00:06]} 73. Kf4 {[%clk 0:00:02]}  Ke6 {[%clk 0:00:07]} 74. Ke3 {[%clk 0:00:02]}  Ke5 {[%clk 0:00:06]} 75. Bd4+ {[%clk 0:00:02]}  Ke6 {[%clk 0:00:07]} 76. Kf4 {[%clk 0:00:02]}  Nd6 {[%clk 0:00:07]} 77. Bxf6 {[%clk 0:00:01]}  Kxf6 {[%clk 0:00:06]} 78. e5+ {[%clk 0:00:02]}  Ke6 {[%clk 0:00:04]} 79. exd6 {[%clk 0:00:03]}  Kxd6 {[%clk 0:00:02]} 80. Kg5 {[%clk 0:00:03]}  Ke7 {[%clk 0:00:02]} 81. Kxg6 {[%clk 0:00:03]}  Kf8 {[%clk 0:00:02]} 82. Kh7 {[%clk 0:00:04]}  Ke7 {[%clk 0:00:01]} 83. g5 {[%clk 0:00:05]}  Kf8 {[%clk 0:00:01]} 84. g6 {[%clk 0:00:06]}  Ke7 {[%clk 0:00:02]} 85. g7 {[%clk 0:00:07]}  Ke6 {[%clk 0:00:02]} 86. g8=Q+ {[%clk 0:00:08]}  Ke5 {[%clk 0:00:02]} 87. Qg6 {[%clk 0:00:08]} 1-0


[Site "https://www.chess.com"]

[Event "Titled Tuesday Blitz September 13 Late 2022"]
[White "Bortnyk, Mykola"]
[Black "Kollars, Dmitrij"]
[WhiteFideId "14120836"]
[BlackFideId "12909572"]
[WhiteElo "2582"]
[BlackElo "2584"]
[Result "1-0"]
[Round "05"]
[TimeControl "180+1"]
[Date "2022.09.13"]
[WhiteClock "0:00:07"]
[BlackClock "0:00:04"]

1. e4 {[%clk 0:03:00]}  e5 {[%clk 0:02:28]} 2. Bc4 {[%clk 0:02:59]}  Nf6 {[%clk 0:02:28]} 3. d3 {[%clk 0:02:59]}  Nc6 {[%clk 0:02:27]} 4. a3 {[%clk 0:02:58]}  Be7 {[%clk 0:02:21]} 5. Nc3 {[%clk 0:02:57]}  O-O {[%clk 0:02:21]} 6. Nge2 {[%clk 0:02:58]}  d6 {[%clk 0:02:20]} 7. f4 {[%clk 0:02:57]}  Be6 {[%clk 0:02:19]} 8. O-O {[%clk 0:02:54]}  exf4 {[%clk 0:02:15]} 9. Nxf4 {[%clk 0:02:48]}  Bxc4 {[%clk 0:02:14]} 10. dxc4 {[%clk 0:02:49]}  Qd7 {[%clk 0:02:14]} 11. h3 {[%clk 0:02:39]}  Rae8 {[%clk 0:02:12]} 12. Be3 {[%clk 0:02:36]}  Bd8 {[%clk 0:02:09]} 13. Qd3 {[%clk 0:02:30]}  Ne5 {[%clk 0:02:01]} 14. Qe2 {[%clk 0:02:30]}  c6 {[%clk 0:02:02]} 15. Rad1 {[%clk 0:02:25]}  Qe7 {[%clk 0:01:58]} 16. Bxa7 {[%clk 0:02:11]}  b6 {[%clk 0:01:52]} 17. Bb8 {[%clk 0:02:11]}  Bc7 {[%clk 0:01:40]} 18. Bxc7 {[%clk 0:02:10]}  Qxc7 {[%clk 0:01:41]} 19. b3 {[%clk 0:02:05]}  Ng6 {[%clk 0:01:30]} 20. Nxg6 {[%clk 0:01:58]}  hxg6 {[%clk 0:01:31]} 21. Qd3 {[%clk 0:01:56]}  Re6 {[%clk 0:01:29]} 22. Qg3 {[%clk 0:01:46]}  Rfe8 {[%clk 0:01:21]} 23. Rd4 {[%clk 0:01:41]}  Qa7 {[%clk 0:01:17]} 24. Rxd6 {[%clk 0:01:36]}  b5+ {[%clk 0:01:12]} 25. Kh2 {[%clk 0:01:34]}  bxc4 {[%clk 0:01:08]} 26. Rxe6 {[%clk 0:01:32]}  Rxe6 {[%clk 0:01:09]} 27. a4 {[%clk 0:01:25]}  cxb3 {[%clk 0:00:58]} 28. cxb3 {[%clk 0:01:26]}  Nxe4 {[%clk 0:00:52]} 29. Nxe4 {[%clk 0:01:26]}  Rxe4 {[%clk 0:00:53]} 30. Qd6 {[%clk 0:01:21]}  Re6 {[%clk 0:00:39]} 31. Qd8+ {[%clk 0:01:21]}  Kh7 {[%clk 0:00:39]} 32. Rf4 {[%clk 0:01:21]}  Re5 {[%clk 0:00:16]} 33. Rh4+ {[%clk 0:01:01]}  Rh5 {[%clk 0:00:16]} 34. Rxh5+ {[%clk 0:01:02]}  gxh5 {[%clk 0:00:16]} 35. a5 {[%clk 0:01:00]}  Qc5 {[%clk 0:00:16]} 36. Qd2 {[%clk 0:00:55]}  Qe5+ {[%clk 0:00:14]} 37. Kg1 {[%clk 0:00:49]}  Qa1+ {[%clk 0:00:13]} 38. Kf2 {[%clk 0:00:50]}  Qf6+ {[%clk 0:00:14]} 39. Ke2 {[%clk 0:00:45]}  Qe5+ {[%clk 0:00:14]} 40. Kd3 {[%clk 0:00:45]}  Qf5+ {[%clk 0:00:10]} 41. Ke2 {[%clk 0:00:33]}  Qe5+ {[%clk 0:00:10]} 42. Kf3 {[%clk 0:00:23]}  Qf5+ {[%clk 0:00:08]} 43. Ke3 {[%clk 0:00:20]}  Qe5+ {[%clk 0:00:07]} 44. Kf2 {[%clk 0:00:21]}  Qf6+ {[%clk 0:00:07]} 45. Kg1 {[%clk 0:00:21]}  Qa1+ {[%clk 0:00:07]} 46. Kh2 {[%clk 0:00:22]}  Qe5+ {[%clk 0:00:07]} 47. g3 {[%clk 0:00:23]}  h4 {[%clk 0:00:07]} 48. Qd3+ {[%clk 0:00:17]}  g6 {[%clk 0:00:05]} 49. a6 {[%clk 0:00:16]}  hxg3+ {[%clk 0:00:05]} 50. Kg2 {[%clk 0:00:16]}  Qf4 {[%clk 0:00:05]} 51. Qf3 {[%clk 0:00:13]}  Qd2+ {[%clk 0:00:04]} 52. Kxg3 {[%clk 0:00:13]}  Qe1+ {[%clk 0:00:04]} 53. Kg2 {[%clk 0:00:11]}  Qd2+ {[%clk 0:00:04]} 54. Qf2 {[%clk 0:00:09]}  Qd5+ {[%clk 0:00:03]} 55. Kg1 {[%clk 0:00:08]}  Qd1+ {[%clk 0:00:04]} 56. Qf1 {[%clk 0:00:06]}  Qd4+ {[%clk 0:00:03]} 57. Kg2 {[%clk 0:00:06]}  Qe4+ {[%clk 0:00:04]} 58. Qf3 {[%clk 0:00:06]}  Qc2+ {[%clk 0:00:04]} 59. Kg3 {[%clk 0:00:07]}  Kg8 {[%clk 0:00:02]} 60. a7 {[%clk 0:00:06]}  Qa2 {[%clk 0:00:03]} 61. Qe3 {[%clk 0:00:06]}  Kg7 {[%clk 0:00:02]} 62. h4 {[%clk 0:00:06]}  Kh7 {[%clk 0:00:02]} 63. h5 {[%clk 0:00:06]}  Qa3 {[%clk 0:00:02]} 64. hxg6+ {[%clk 0:00:07]}  Kg7 {[%clk 0:00:02]} 65. gxf7 {[%clk 0:00:06]}  Qd6+ {[%clk 0:00:03]} 66. Kf3 {[%clk 0:00:06]}  Qd5+ {[%clk 0:00:03]} 67. Ke2 {[%clk 0:00:07]}  Qh5+ {[%clk 0:00:02]} 68. Qf3 {[%clk 0:00:06]}  Qe5+ {[%clk 0:00:03]} 69. Kd2 {[%clk 0:00:07]}  Qd4+ {[%clk 0:00:03]} 70. Kc2 {[%clk 0:00:07]}  Qc5+ {[%clk 0:00:04]} 71. Kb1 {[%clk 0:00:06]}  Qf2 {[%clk 0:00:04]} 72. Qxf2 {[%clk 0:00:07]} 1-0


[Site "https://www.chess.com"]